fUSD/lending_fUSD_20250101
["ID","MTS","AMOUNT","RATE_DAILY","PERIOD"]
[347347570,1735717840965,-500.0,0.0001103,2]
[347347571,1735717840974,-500.0,0.0001103,2]
[347347572,1735717840983,-3253.68,0.0001103,2]
[347347573,1735717840992,-500.0,0.0001103,2]
[347347574,1735717841001,-1942.04,0.0001103,2]
[347347575,1735717841010,-839.73,0.0001103,2]
[347347576,1735717841020,-500.0,0.0001103,2]
[347347577,1735717841029,-37.58195498,0.0001103,2]
[347347578,1735717841814,-462.41804502,0.0001103,2]
[347347579,1735717841824,-535.97715466,0.0001103,2]
[347347580,1735717841835,-440.47284534,0.0001103,2]
[347347581,1735717841845,-305.53242033,0.0001103,2]
[347347582,1735717841857,-782.80757967,0.0001103,2]
[347347583,1735717841866,-500.0,0.0001103,2]
[347347584,1735717841876,-2043.44,0.0001103,2]
[347347585,1735717841887,-500.0,0.0001103,2]
[347347586,1735717841897,-173.42745299,0.0001103,2]
[347347587,1735717841910,-326.57254701,0.0001103,2]
[347347588,1735717841920,-686.79,0.0001103,2]
[347347589,1735717841930,-500.0,0.0001103,2]
[347347590,1735717841940,-605.56,0.0001103,2]
[347347591,1735717841949,-135.95897752,0.0001103,2]
[347347592,1735717841961,-562.48140947,0.0001103,2]
[347347593,1735717841983,-1346.71961301,0.0001103,2]
[347347594,1735717841993,-500.0,0.0001103,2]
[347347595,1735717842002,-500.0,0.0001103,2]
[347347596,1735717842012,-500.0,0.0001103,2]
[347347597,1735717842021,-658.5,0.0001103,2]
[347347598,1735717842031,-871.03,0.0001103,2]
[347347599,1735717842040,-500.0,0.0001103,2]
[347347600,1735717842049,-1580.74,0.0001103,2]
[347347601,1735717842059,-1985.34,0.0001103,2]
[347347602,1735717842070,-500.0,0.0001103,2]
[347347603,1735717842080,-500.0,0.0001103,2]
[347347604,1735717842089,-2165.45,0.0001103,2]
[347347605,1735717842099,-1807.97,0.0001103,2]
[347347606,1735717842111,-604.08,0.0001103,2]
[347347607,1735717842121,-500.0,0.0001103,2]
[347347608,1735717842130,-500.0,0.0001103,2]
[347347609,1735717842140,-500.0,0.0001103,2]
[347347610,1735717842149,-538.16,0.0001103,2]
[347347611,1735717842159,-2316.71,0.0001103,2]
[347347612,1735717842168,-500.0,0.0001103,2]
[347347613,1735717842177,-500.0,0.0001103,2]
[347347614,1735717842187,-617.45,0.0001103,2]
[347347615,1735717842197,-641.12,0.0001103,2]
[347347616,1735717842207,-527.33,0.0001103,2]
[347347617,1735717842216,-1906.16,0.0001103,2]
[347347618,1735717842226,-500.0,0.0001103,2]
[347347619,1735717842235,-3366.19,0.0001103,2]
[347347620,1735717842244,-500.0,0.0001103,2]
[347347621,1735717842254,-728.69,0.0001103,2]
[347347622,1735717842264,-500.0,0.0001103,2]
[347347623,1735717842274,-2630.88,0.0001103,2]
[347347624,1735717842284,-500.0,0.0001103,2]
[347347625,1735717842294,-1246.97,0.0001103,2]
[347347626,1735717842303,-500.0,0.0001103,2]
[347347627,1735717842312,-2114.35,0.0001103,2]
[347347628,1735717842322,-1192.33,0.0001103,2]
[347347629,1735717842331,-3464.1,0.0001103,2]
[347347630,1735717842340,-500.0,0.0001103,2]
[347347631,1735717842350,-500.0,0.0001103,2]
[347347632,1735717842360,-2063.52,0.0001103,2]
[347347633,1735717842370,-500.0,0.0001103,2]
[347347634,1735717842379,-500.0,0.0001103,2]
[347347635,1735717842388,-1743.13,0.0001103,2]
[347347636,1735717842398,-500.0,0.0001103,2]
[347347637,1735717842408,-1636.25,0.0001103,2]
[347347638,1735717842419,-3075.03,0.0001103,2]
[347347639,1735717842428,-500.0,0.0001103,2]
[347347640,1735717842437,-12178.88647083,0.0001103,2]
[347347641,1735717842449,-9624.74887865,0.0001103,2]
[347347643,1735717842997,-3196.36465052,0.0001103,2]
[347347644,1735717843008,-2541.01,0.0001103,2]
[347347645,1735717843018,-500.0,0.0001103,2]
[347347646,1735717843028,-500.0,0.0001103,2]
[347347647,1735717843037,-2983.04,0.0001103,2]
[347347648,1735717843047,-677.49,0.0001103,2]
[347347649,1735717843056,-883.36,0.0001103,2]
[347347650,1735717843066,-1136.94,0.0001103,2]
[347347651,1735717843076,-500.0,0.0001103,2]
[347347652,1735717843086,-1585.98,0.0001103,2]
[347347653,1735717843095,-596.84,0.0001103,2]
[347347654,1735717843104,-1181.06,0.0001103,2]
[347347655,1735717843114,-3363.42,0.0001103,2]
[347347656,1735717843123,-1409.6,0.0001103,2]
[347347657,1735717843133,-500.0,0.0001103,2]
[347347658,1735717843143,-606.04,0.0001103,2]
[347347659,1735717843153,-949.41,0.0001103,2]
[347347660,1735717843163,-500.0,0.0001103,2]
[347347663,1735717843500,-500.0,0.0001103,2]
[347347664,1735717843510,-2345.9,0.0001103,2]
[347347665,1735717843519,-1162.65,0.0001103,2]
[347347666,1735717843528,-500.0,0.0001103,2]
[347347667,1735717843537,-2481.44,0.0001103,2]
[347347668,1735717843546,-2179.97,0.0001103,2]
[347347669,1735717843555,-711.93,0.0001103,2]
[347347670,1735717843564,-1842.35,0.0001103,2]
[347347671,1735717843573,-1293.81,0.0001103,2]
[347347672,1735717843582,-500.0,0.0001103,2]
[347347673,1735717843591,-500.0,0.0001103,2]
[347347674,1735717843600,-500.0,0.0001103,2]
[347347675,1735717843609,-569.79,0.0001103,2]
[347347676,1735717843618,-1022.96,0.0001103,2]
[347347677,1735717843627,-2715.73,0.0001103,2]
[347347678,1735717843637,-500.0,0.0001103,2]
[347347679,1735717843646,-500.0,0.0001103,2]
[347347680,1735717843655,-500.0,0.0001103,2]
[347347681,1735717843664,-500.0,0.0001103,2]
[347347682,1735717843674,-1408.38,0.0001103,2]
[347347683,1735717843685,-1869.83,0.0001103,2]
[347347684,1735717843694,-500.0,0.0001103,2]
[347347685,1735717843703,-628.26,0.0001103,2]
[347347686,1735717843712,-535.46,0.0001103,2]
[347347687,1735717843721,-1762.38,0.0001103,2]
[347347688,1735717843730,-1054.87,0.0001103,2]
[347347689,1735717843738,-500.0,0.0001103,2]
[347347690,1735717843749,-1798.79,0.0001103,2]
[347347691,1735717843759,-2470.51,0.0001103,2]
[347347692,1735717843767,-2876.51,0.0001103,2]
[347347693,1735717843776,-2404.17,0.0001103,2]
[347347694,1735717843785,-714.6,0.0001103,2]
[347347695,1735717843794,-667.98,0.0001103,2]
[347347696,1735717843803,-1440.76,0.0001103,2]
[347347697,1735717843812,-500.0,0.0001103,2]
[347347698,1735717843821,-3310.3,0.0001103,2]
[347347699,1735717843830,-2912.28,0.0001103,2]
[347347700,1735717843839,-1741.4,0.0001103,2]
[347347701,1735717843848,-1200.93,0.0001103,2]
[347347702,1735717843858,-1812.57,0.0001103,2]
[347347703,1735717843867,-500.0,0.0001103,2]
[347347704,1735717843876,-500.0,0.0001103,2]
[347347705,1735717843885,-799.25,0.0001103,2]
[347347706,1735717843894,-1922.44,0.0001103,2]
[347347707,1735717843903,-1067.65,0.0001103,2]
[347347708,1735717843913,-500.0,0.0001103,2]
[347347709,1735717843922,-747.13,0.0001103,2]
[347347710,1735717843931,-1594.58,0.0001103,2]
[347347711,1735717843940,-500.0,0.0001103,2]
[347347712,1735717843949,-500.0,0.0001103,2]
[347347713,1735717843958,-500.0,0.0001103,2]
[347347714,1735717843967,-1992.04,0.0001103,2]
[347347715,1735717843976,-3447.22,0.0001103,2]
[347347716,1735717843985,-1414.54,0.0001103,2]
[347347717,1735717843994,-687.58,0.0001103,2]
[347347718,1735717844003,-1965.36,0.0001103,2]
[347347719,1735717844012,-3163.81,0.0001103,2]
[347347720,1735717844021,-500.0,0.0001103,2]
[347347721,1735717844030,-500.0,0.0001103,2]
[347347722,1735717844039,-500.0,0.0001103,2]
[347347723,1735717844048,-1442.07,0.0001103,2]
[347347724,1735717844058,-1188.0,0.0001103,2]
[347347725,1735717844067,-500.0,0.0001103,2]
[347347726,1735717844077,-2725.01,0.0001103,2]
[347347727,1735717844087,-1900.93,0.0001103,2]
[347347728,1735717844095,-500.0,0.0001103,2]
[347347729,1735717844105,-2709.046212,0.0001103,2]
[347347730,1735717844114,-4289.96,0.0001103,2]
[347347731,1735717844123,-500.0,0.0001103,2]
[347347732,1735717844132,-1334.12,0.0001103,2]
[347347733,1735717844141,-500.0,0.0001103,2]
[347347734,1735717844151,-500.0,0.0001103,2]
[347347735,1735717844160,-9390.64,0.0001103,2]
[347347736,1735717844171,-623.49,0.0001103,2]
[347347737,1735717844179,-2219.72,0.0001103,2]
[347347738,1735717844189,-500.0,0.0001103,2]
[347347739,1735717844198,-500.0,0.0001103,2]
[347347740,1735717844207,-1043.8,0.0001103,2]
[347347741,1735717844216,-500.0,0.0001103,2]
[347347742,1735717844225,-1359.66,0.0001103,2]
[347347743,1735717844235,-500.0,0.0001103,2]
[347347744,1735717844244,-723.15,0.0001103,2]
[347347745,1735717844254,-761.68,0.0001103,2]
[347347746,1735717844264,-1968.05,0.0001103,2]
[347347747,1735717844274,-1044.59,0.0001103,2]
[347347748,1735717844284,-2100.01,0.0001103,2]
[347347749,1735717844295,-500.0,0.0001103,2]
[347347750,1735717844306,-2435.47,0.0001103,2]
[347347751,1735717844315,-2508.96,0.0001103,2]
[347347752,1735717844324,-3284.92,0.0001103,2]
[347347753,1735717844333,-500.0,0.0001103,2]
[347347754,1735717844342,-500.0,0.0001103,2]
[347347755,1735717844352,-562.81,0.0001103,2]
[347347756,1735717844362,-2826.96,0.0001103,2]
[347347757,1735717844371,-318.07787976,0.0001103,2]
[347347758,1735717844381,-875.33,0.0001103,2]
[347347759,1735717844390,-2310.55,0.0001103,2]
[347347760,1735717844399,-916.1,0.0001103,2]
[347347761,1735717844408,-1302.5,0.0001103,2]
[347347762,1735717844417,-1155.26,0.0001103,2]
[347347763,1735717844426,-1417.44,0.0001103,2]
[347347764,1735717844435,-3802.67,0.0001103,2]
[347347765,1735717844445,-1792.3,0.0001103,2]
[347347766,1735717844453,-2885.75,0.0001103,2]
[347347767,1735717844462,-500.0,0.0001103,2]
[347347768,1735717844471,-500.0,0.0001103,2]
[347347769,1735717844480,-551.61,0.0001103,2]
[347347770,1735717844489,-584.3,0.0001103,2]
[347347771,1735717844498,-3301.21,0.0001103,2]
[347347772,1735717844508,-2782.07,0.0001103,2]
[347347773,1735717844517,-500.0,0.0001103,2]
[347347774,1735717844526,-532.51,0.0001103,2]
[347347775,1735717844535,-2390.41,0.0001103,2]
[347347776,1735717844544,-238.33394372,0.0001103,2]
[347347777,1735717844553,-3391.28,0.0001103,2]
[347347778,1735717844562,-6637.99,0.0001103,2]
[347347779,1735717844571,-500.0,0.0001103,2]
[347347780,1735717844580,-500.0,0.0001103,2]
[347347781,1735717844589,-500.0,0.0001103,2]
[347347782,1735717844599,-500.0,0.0001103,2]
[347347783,1735717844608,-521.77,0.0001103,2]
[347347784,1735717844618,-500.0,0.0001103,2]
[347347785,1735717844627,-500.0,0.0001103,2]
[347347786,1735717844636,-2025.92,0.0001103,2]
[347347787,1735717844645,-670.12,0.0001103,2]
[347347788,1735717844654,-8204.34,0.0001103,2]
[347347789,1735717844666,-1022.41,0.0001103,2]
[347347790,1735717844675,-1955.75,0.0001103,2]
[347347791,1735717844684,-500.0,0.0001103,2]
[347347792,1735717844694,-4130.96,0.0001103,2]
[347347793,1735717844705,-500.0,0.0001103,2]
[347347794,1735717844714,-1467.83,0.0001103,2]
[347347795,1735717844723,-525.01,0.0001103,2]
[347347796,1735717844733,-500.0,0.0001103,2]
[347347797,1735717844743,-2057.53,0.0001103,2]
[347347798,1735717844752,-884.01,0.0001103,2]
[347347799,1735717844761,-500.0,0.0001103,2]
[347347800,1735717844770,-279.66136975,0.0001103,2]
[347347801,1735717844779,-788.59,0.0001103,2]
[347347802,1735717844788,-500.0,0.0001103,2]
[347347803,1735717844797,-500.0,0.0001103,2]
[347347804,1735717844806,-500.0,0.0001103,2]
[347347805,1735717844815,-2693.26,0.0001103,2]
[347347806,1735717844825,-5531.75,0.0001103,2]
[347347807,1735717844834,-2624.06,0.0001103,2]
[347347808,1735717844843,-1362.6,0.0001103,2]
[347347809,1735717844852,-500.0,0.0001103,2]
[347347810,1735717844861,-880.85,0.0001103,2]
[347347811,1735717844871,-2049.26,0.0001103,2]
[347347812,1735717844880,-500.0,0.0001103,2]
[347347813,1735717844889,-850.42,0.0001103,2]
[347347814,1735717844898,-1945.13,0.0001103,2]
[347347815,1735717844907,-1548.45,0.0001103,2]
[347347816,1735717844916,-1714.63,0.0001103,2]
[347347817,1735717844925,-500.0,0.0001103,2]
[347347818,1735717844935,-741.66,0.0001103,2]
[347347819,1735717844943,-835.31,0.0001103,2]
[347347820,1735717844952,-4065.01,0.0001103,2]
[347347821,1735717844962,-601.70514425,0.0001103,2]
[347347822,1735717845016,-474.44416233,0.0001103,2]
[347347843,1735717845982,-11518.78069342,0.0001103,2]
[347347844,1735717845991,-3665.4,0.0001103,2]
[347347845,1735717846000,-28383.41268041,0.0001103,2]
[347347846,1735717847149,-769.13,0.00011029,2]
[347347847,1735717847158,-1092.49,0.00011029,2]
[347347848,1735717847167,-2411.2956,0.0001103,2]
[347347849,1735717847919,150.0,0.00010929,2]
[347347850,1735717847960,150.0,0.00010963,2]
[347347851,1735717848000,150.0,0.00010963,2]
[347347852,1735717848044,150.0,0.00010876,2]
[347347853,1735717848098,150.0,0.00010794,2]
[347347854,1735717931391,1000.0,0.00010181,2]
[347347855,1735717936603,150.0,0.00010971,2]
[347347856,1735717936643,150.0,0.00010758,2]
[347347857,1735717936856,150.0,0.00010997,2]
[347347858,1735717944533,150.0,0.0001077,2]
[347347859,1735717944584,150.0,0.00010855,2]
[347347860,1735717944648,150.0,0.00010841,2]
[347347861,1735717944720,150.0,0.00010881,2]
[347347862,1735717944811,150.0,0.00010932,2]
[347347863,1735717948144,2668.1656,0.0001093,2]
[347347864,1735717952303,150.0,0.00010799,2]
[347347865,1735717952341,150.0,0.00010912,2]
[347347866,1735717952420,154.22335431,0.0001092,2]
[347347867,1735717952463,150.0,0.00010977,2]
[347347868,1735717952508,150.0,0.0001095,2]
[347347869,1735717952625,150.0,0.0001076,2]
[347347870,1735717952698,150.0,0.00010948,2]
[347347871,1735717952744,150.0,0.00010857,2]
[347347872,1735717952784,150.0,0.00010909,2]
[347347873,1735717952850,150.0,0.00010894,2]
[347347874,1735717952891,150.0,0.00011009,2]
[347347875,1735717952943,150.0,0.00010868,2]
[347347876,1735717957770,500.0,8.22e-05,2]
[347347877,1735717958896,700.0,8.859e-05,2]
[347347878,1735717959386,500.0,0.0001096,2]
[347347879,1735717961114,700.0,0.00010229,2]
[347347880,1735717968438,150.0,0.00010811,2]
[347347881,1735717968499,150.0,0.00010779,2]
[347347882,1735717968538,216.49075896,0.00010992,2]
[347347883,1735717968595,150.0,0.00010792,2]
[347347884,1735717968647,150.0,0.00010771,2]
[347347885,1735717968696,150.0,0.00010774,2]
[347347886,1735717970526,168.95,0.0001048,2]
[347347887,1735717980037,2000.0,8.859e-05,2]
[347347888,1735717981771,2000.0,0.00010229,2]
[347347889,1735717983684,500.0,0.0001093,2]
[347347890,1735717987462,311.308,0.00010929,2]
[347347891,1735717999359,5000.0,0.00010931,2]
[347347892,1735718006206,150.0,0.0001096,2]
[347347893,1735718030158,1000.0,0.0001093,2]
[347347894,1735718032271,1104.90089945,0.00010741,2]
[347347895,1735718064373,4141.35,0.00010959,2]
[347347896,1735718066749,6155.9359,0.00010929,2]
[347347897,1735718072879,1000.0,0.00010929,2]
[347347898,1735718073524,7584.4858,0.00010929,2]
[347347899,1735718076865,2569.836,0.00010929,2]
[347347900,1735718087243,473.77,8.219e-05,2]
[347347901,1735718087401,473.77,0.00010482,2]
[347347902,1735718112380,14119.1558,0.00010932,2]
[347347903,1735718120678,3463.96013862,0.00011,2]
[347347904,1735718168395,720.046,0.00010929,2]
[347347905,1735718210197,595.78,0.0001015,2]
[347347906,1735718246633,150.0,0.00011008,2]
[347347907,1735718246692,150.0,0.00010801,2]
[347347908,1735718246727,150.0,0.00010765,2]
[347347909,1735718246783,150.0,0.00010928,2]
[347347910,1735718247136,150.0,0.00010882,2]
[347347911,1735718247177,150.0,0.00010983,2]
[347347912,1735718247213,150.0,0.00010828,2]
[347347913,1735718247258,150.0,0.00010891,2]
[347347914,1735718247301,150.0,0.00010944,2]
[347347915,1735718247349,150.0,0.00010965,2]
[347347916,1735718247390,150.0,0.00010982,2]
[347347917,1735718247444,150.0,0.00010928,2]
[347347918,1735718247507,150.0,0.0001095,2]
[347347919,1735718247558,150.0,0.00010833,2]
[347347920,1735718247605,150.0,0.00010988,2]
[347347921,1735718250882,150.0,0.00010811,2]
[347347922,1735718256014,1500.0,0.00010849,2]
[347347923,1735718256306,150.0,0.00010774,2]
[347347924,1735718256387,150.0,0.00010758,2]
[347347925,1735718256533,150.0,0.0001085,2]
[347347926,1735718256592,150.0,0.00010905,2]
[347347927,1735718256650,165.94740632,0.00011002,2]
[347347928,1735718267112,23900.0,0.00010134,2]
[347347929,1735718315001,150.0,0.00010993,2]
[347347930,1735718334255,250.0,0.00010114,2]
[347347931,1735718342371,151.1085613,0.00010927,2]
[347347932,1735718348323,151.1085613,0.00010928,2]
[347347933,1735718356708,172.7582,0.0001092,2]
[347347934,1735718371992,5629.61,0.00010959,2]
[347347935,1735718400125,299.68735182,0.0001093,2]
[347347936,1735718404789,1640.0,0.00010125,2]
[347347937,1735718459328,286.56,0.00017,60]
[347347938,1735718460182,250.0,0.0001009,2]
[347347939,1735718487902,285.81,0.00010137,2]
[347347941,1735718512582,150.0,0.00010959,2]
[347347942,1735718546174,150.0,0.00010894,2]
[347347943,1735718546252,150.0,0.0001082,2]
[347347944,1735718579089,167.49,0.000101,2]
[347347945,1735718603899,161.647,0.0001048,2]
[347347946,1735718624611,448262.0,0.00011,2]
[347347947,1735718678366,250.0,0.00010108,2]
[347347948,1735718709892,157.84113818,0.00010652,2]
[347347949,1735718710165,157.84113818,0.00010664,2]
[347347950,1735718710522,157.84113818,0.00010676,2]
[347347951,1735718710832,157.84113818,0.00010688,2]
[347347952,1735718711150,157.84113818,0.000107,2]
[347347953,1735718711474,157.84113818,0.00010712,2]
[347347954,1735718711813,157.84113818,0.00010724,2]
[347347955,1735718712146,157.84113818,0.00010736,2]
[347347956,1735718712598,157.84113818,0.00010748,2]
[347347957,1735718712865,157.84113818,0.0001076,2]
[347347958,1735718713284,157.84113818,0.00010772,2]
[347347959,1735718713618,157.84113818,0.00010784,2]
[347347960,1735718714097,157.84113818,0.00010796,2]
[347347961,1735718714434,157.84113818,0.00010807,2]
[347347962,1735718714756,157.84113818,0.00010819,2]
[347347963,1735718715098,157.84113818,0.00010831,2]
[347347964,1735718715430,157.84113818,0.00010843,2]
[347347965,1735718715763,157.84113818,0.00010855,2]
[347347966,1735718716142,157.84113818,0.00010867,2]
[347347967,1735718716517,157.84113818,0.00010879,2]
[347347968,1735718717646,157.84113818,0.00010891,2]
[347347969,1735718717755,157.84113818,0.00010903,2]
[347347970,1735718717861,157.84113818,0.00010915,2]
[347347971,1735718718119,157.84113818,0.00010927,2]
[347347972,1735718718253,157.84113818,0.00010939,2]
[347347973,1735718718536,157.84113818,0.00010951,2]
[347347974,1735718718856,157.84113818,0.00010963,2]
[347347975,1735718719180,157.84113818,0.00010975,2]
[347347976,1735718719784,157.84113818,0.00010987,2]
[347347977,1735718720077,157.84113818,0.00010999,2]
[347347978,1735718720439,157.84113818,0.00011011,2]
[347347979,1735718723039,184.03,8.092e-05,2]
[347347980,1735718741491,8924.17,0.00011,2]
[347347981,1735718747802,150.0,0.00010652,2]
[347347982,1735718748116,150.0,0.00010676,2]
[347347983,1735718748441,150.0,0.00010699,2]
[347347984,1735718748754,150.0,0.00010723,2]
[347347985,1735718749093,150.0,0.00010747,2]
[347347986,1735718750330,150.0,0.0001077,2]
[347347987,1735718750502,150.0,0.00010794,2]
[347347988,1735718750691,150.0,0.00010818,2]
[347347989,1735718750791,150.0,0.00010841,2]
[347347990,1735718750961,150.0,0.00010865,2]
[347347991,1735718751054,150.0,0.00010889,2]
[347347992,1735718751316,150.0,0.00010912,2]
[347347993,1735718751637,150.0,0.00010936,2]
[347347994,1735718751994,150.0,0.0001096,2]
[347347995,1735718752295,150.0,0.00010983,2]
[347347996,1735718752657,150.0,0.00011007,2]
[347347997,1735718768818,150.0,0.00010652,2]
[347347998,1735718773104,150.0,0.00010652,2]
[347347999,1735718773316,150.0,0.00010667,2]
[347348000,1735718773505,150.0,0.00010682,2]
[347348001,1735718773698,150.0,0.00010696,2]
[347348002,1735718774560,150.0,0.00010711,2]
[347348003,1735718774688,150.0,0.00010726,2]
[347348004,1735718774814,150.0,0.00010741,2]
[347348005,1735718775038,150.0,0.00010756,2]
[347348006,1735718775377,150.0,0.0001077,2]
[347348007,1735718775680,150.0,0.00010785,2]
[347348008,1735718776007,150.0,0.000108,2]
[347348009,1735718776321,150.0,0.00010815,2]
[347348010,1735718776632,150.0,0.0001083,2]
[347348011,1735718776964,150.0,0.00010844,2]
[347348012,1735718777330,150.0,0.00010859,2]
[347348013,1735718778362,150.0,0.00010874,2]
[347348014,1735718778715,150.0,0.00010889,2]
[347348015,1735718779077,150.0,0.00010904,2]
[347348016,1735718779389,150.0,0.00010918,2]
[347348017,1735718779700,150.0,0.00010933,2]
[347348018,1735718780282,150.0,0.00010948,2]
[347348019,1735718780921,150.0,0.00010963,2]
[347348020,1735718781232,150.0,0.00010978,2]
[347348021,1735718781545,150.0,0.00010992,2]
[347348022,1735718782509,150.0,0.00011007,2]
[347348023,1735718790926,150.21804384,0.00010652,2]
[347348024,1735718793700,150.0,0.00010652,2]
[347348025,1735718796450,150.0,0.00010652,2]
[347348026,1735718798653,150.0,0.00010652,2]
[347348027,1735718802602,150.15278642,0.00010652,2]
[347348028,1735718806558,150.15952833,0.00010652,2]
[347348029,1735718810146,150.27569736,0.00010652,2]
[347348030,1735718812029,150.0,0.00010652,2]
[347348031,1735718812368,150.0,0.0001076,2]
[347348032,1735718812667,150.0,0.00010867,2]
[347348033,1735718812986,150.0,0.00010975,2]
[347348034,1735718832658,1000.0,0.00010045,2]
[347348035,1735718881843,7646.82,0.00010047,2]
[347348036,1735718923893,239.98360066,0.00010761,2]
[347348037,1735718941404,300.0,0.00011011,2]
[347348038,1735718946956,150.0,0.00010867,2]
[347348039,1735718991236,389.41,0.00010133,2]
[347348041,1735719032066,-3276.84887466,0.00011012,2]
[347348042,1735719032078,-540.0,0.00011012,2]
[347348043,1735719032089,-535.47,0.00011012,2]
[347348044,1735719032100,-1980.12414371,0.00011012,2]
[347348045,1735719032518,-1962.35435189,0.00011012,2]
[347348046,1735719032530,-1328.681,0.00011012,2]
[347348047,1735719032541,-14302.08543051,0.00011012,2]
[347348048,1735719032554,-42369.6998206,0.00011012,2]
[347348050,1735719032574,-2631.95276962,0.00011012,2]
[347348052,1735719032586,-6053.1265088,0.00011012,2]
[347348054,1735719032597,-2600.96410032,0.00011012,2]
[347348059,1735719032632,-59348.14669289,0.00011012,2]
[347348062,1735719032642,-150.0,0.00011022,2]
[347348065,1735719032651,-157.84113818,0.00011023,2]
[347348068,1735719032660,-150.0,0.00011025,2]
[347348070,1735719032669,-1042.52,0.00011026,2]
[347348072,1735719032679,-1082.98,0.00011026,2]
[347348074,1735719032688,-2800.75,0.00011026,2]
[347348076,1735719032697,-3355.511,0.00011027,2]
[347348078,1735719032706,-237.21,0.00011027,2]
[347348080,1735719032716,-4560.45,0.00011027,2]
[347348082,1735719032725,-2250.74,0.00011027,2]
[347348084,1735719032734,-6161.41,0.00011027,2]
[347348086,1735719032743,-2870.95,0.00011027,2]
[347348088,1735719032752,-5154.63,0.00011027,2]
[347348090,1735719032761,-19402.87,0.00011027,2]
[347348092,1735719032771,-503.03148111,0.00011027,2]
[347348094,1735719032780,-1879.93,0.00011027,2]
[347348096,1735719032789,-939.23,0.00011027,2]
[347348098,1735719032798,-7244.21,0.00011027,2]
[347348099,1735719032807,-3577.37,0.00011027,2]
[347348102,1735719032817,-1609.12,0.00011027,2]
[347348104,1735719032826,-8367.39,0.00011027,2]
[347348105,1735719032835,-3294.81,0.00011027,2]
[347348108,1735719032845,-4124.0,0.00011027,2]
[347348109,1735719032854,-6968.44,0.00011027,2]
[347348111,1735719032864,-11391.73,0.00011027,2]
[347348114,1735719032874,-2221.71,0.00011027,2]
[347348116,1735719032883,-7054.39,0.00011027,2]
[347348117,1735719032893,-2790.67,0.00011027,2]
[347348119,1735719032902,-1154.2,0.00011027,2]
[347348121,1735719032911,-2148.72,0.00011027,2]
[347348123,1735719032921,-2448.74,0.00011027,2]
[347348125,1735719032932,-5360.32,0.00011027,2]
[347348127,1735719032941,-3081.34,0.00011028,2]
[347348129,1735719032950,-2445.45,0.00011028,2]
[347348130,1735719032960,-500.0,0.00011028,2]
[347348131,1735719032970,-617.19,0.00011028,2]
[347348132,1735719032979,-2230.67,0.00011028,2]
[347348133,1735719032989,-678.42,0.00011028,2]
[347348134,1735719032998,-500.0,0.00011028,2]
[347348135,1735719033007,-1164.54,0.00011028,2]
[347348136,1735719033016,-513.97,0.00011028,2]
[347348137,1735719033026,-500.0,0.00011028,2]